[Event "Top 12 Féminin 2026"]
[Site "Asnières-sur-Seine, France"]
[Date "2026.05.15"]
[Round "3.4"]
[White "Dornbusch, Tatiana"]
[Black "Thomas, Anysia"]
[Result "1/2-1/2"]
[TimeControl "1h30 / 40 moves + 30m + 30sec/move"]
[WhiteTitle "WGM"]
[BlackTitle "WFM"]
[WhiteFideId "-"]
[BlackFideId "-"]
[WhiteElo "2189"]
[BlackElo "2120"]

1. d4 {[%clk 01:30:30]} {[%emt 18:49:55]} Nf6 {[%clk 01:30:21]} {[%emt
00:00:42]} 2. Nf3 {[%clk 01:30:04]} {[%emt 00:01:24]} g6 {[%clk 01:30:45]}
{[%emt 00:00:06]} 3. c4 {[%clk 01:27:57]} {[%emt 00:02:37]} Bg7 {[%clk
01:31:00]} {[%emt 00:00:15]} 4. Nbd2 {[%clk 01:25:17]} {[%emt 00:03:10]} O-O
{[%clk 01:28:38]} {[%emt 00:02:52]} 5. e4 {[%clk 01:23:44]} {[%emt 00:02:04]}
c5 {[%clk 01:19:45]} {[%emt 00:09:23]} 6. d5 {[%clk 01:20:36]} {[%emt
00:03:37]} d6 {[%clk 01:17:54]} {[%emt 00:02:21]} 7. Bd3 {[%clk 01:19:04]}
{[%emt 00:02:02]} b5 {[%clk 01:09:35]} {[%emt 00:08:49]} 8. cxb5 {[%clk
01:14:00]} {[%emt 00:05:34]} a6 {[%clk 01:07:12]} {[%emt 00:02:54]} 9. b6
{[%clk 01:10:00]} {[%emt 00:04:29]} Nbd7 {[%clk 01:05:52]} {[%emt 00:01:49]} 10.
O-O {[%clk 01:05:36]} {[%emt 00:04:54]} Nxb6 {[%clk 01:03:45]} {[%emt
00:02:38]} 11. Qe2 {[%clk 01:02:01]} {[%emt 00:04:04]} a5 {[%clk 00:47:44]}
{[%emt 00:16:31]} 12. Rd1 {[%clk 00:54:42]} {[%emt 00:07:49]} a4 {[%clk
00:38:54]} {[%emt 00:09:20]} 13. Rb1 {[%clk 00:53:35]} {[%emt 00:01:37]} Rb8
{[%clk 00:24:15]} {[%emt 00:15:08]} 14. Nf1 {[%clk 00:48:49]} {[%emt 00:05:16]}
c4 {[%clk 00:22:32]} {[%emt 00:02:14]} 15. Bxc4 {[%clk 00:47:17]} {[%emt
00:02:02]} Nxc4 {[%clk 00:22:53]} {[%emt 00:00:09]} 16. Qxc4 {[%clk 00:47:38]}
{[%emt 00:00:09]} Nxe4 {[%clk 00:22:24]} {[%emt 00:00:59]} 17. Be3 {[%clk
00:41:34]} {[%emt 00:06:35]} Nc5 {[%clk 00:19:15]} {[%emt 00:03:39]} 18. Bxc5
{[%clk 00:33:21]} {[%emt 00:08:43]} dxc5 {[%clk 00:19:41]} {[%emt 00:00:05]} 19.
Qxa4 {[%clk 00:32:21]} {[%emt 00:01:30]} Bf5 {[%clk 00:17:04]} {[%emt
00:03:06]} 20. Rbc1 {[%clk 00:31:46]} {[%emt 00:01:05]} Rxb2 {[%clk 00:17:00]}
{[%emt 00:00:34]} 21. Rxc5 {[%clk 00:30:50]} {[%emt 00:01:26]} Qb6 {[%clk
00:16:52]} {[%emt 00:00:39]} 22. Qa5 {[%clk 00:24:17]} {[%emt 00:07:03]} Qxa5
{[%clk 00:09:54]} {[%emt 00:07:28]} 23. Rxa5 {[%clk 00:24:42]} {[%emt
00:00:04]} Bc3 {[%clk 00:10:08]} {[%emt 00:00:16]} 24. Ra7 {[%clk 00:23:15]}
{[%emt 00:01:57]} Bb4 {[%clk 00:07:35]} {[%emt 00:03:03]} 25. Ne3 {[%clk
00:17:56]} {[%emt 00:05:49]} Bc5 {[%clk 00:07:47]} {[%emt 00:00:18]} 26. Ra5
{[%clk 00:17:39]} {[%emt 00:00:48]} Bb6 {[%clk 00:06:08]} {[%emt 00:02:09]} 27.
Ra3 {[%clk 00:14:57]} {[%emt 00:03:12]} Rc8 {[%clk 00:03:00]} {[%emt 00:03:38]}
28. Rb3 {[%clk 00:10:14]} {[%emt 00:05:14]} Rxb3 {[%clk 00:03:25]} {[%emt
00:00:05]} 29. axb3 {[%clk 00:10:41]} {[%emt 00:00:03]} Bxe3 {[%clk 00:03:37]}
{[%emt 00:00:18]} 30. fxe3 {[%clk 00:11:06]} {[%emt 00:00:05]} Rc3 {[%clk
00:04:00]} {[%emt 00:00:08]} 31. Nd4 {[%clk 00:06:17]} {[%emt 00:05:18]} Rxe3
{[%clk 00:03:44]} {[%emt 00:00:46]} 32. Kf2 {[%clk 00:06:25]} {[%emt 00:00:22]}
Rc3 {[%clk 00:01:27]} {[%emt 00:02:48]} 33. Nxf5 {[%clk 00:02:18]} {[%emt
00:04:37]} gxf5 {[%clk 00:01:55]} {[%emt 00:00:01]} 34. d6 {[%clk 00:02:37]}
{[%emt 00:00:11]} exd6 {[%clk 00:02:16]} {[%emt 00:00:09]} 35. Rxd6 {[%clk
00:02:54]} {[%emt 00:00:12]} Rxb3 {[%clk 00:02:34]} {[%emt 00:00:12]} 36. Rd5
{[%clk 00:03:07]} {[%emt 00:00:17]} Rb2+ {[%clk 00:01:19]} {[%emt 00:01:46]} 37.
Kf3 {[%clk 00:03:33]} {[%emt 00:00:04]} Rb3+ {[%clk 00:01:43]} {[%emt
00:00:06]} 38. Kf4 {[%clk 00:03:33]} {[%emt 00:00:29]} Rb2 {[%clk 00:01:57]}
{[%emt 00:00:17]} 39. Kf3 {[%clk 00:03:12]} {[%emt 00:00:50]} Rb3+ {[%clk
00:02:01]} {[%emt 00:00:26]} 1/2-1/2

[Event "Top 12 Féminin 2026"]
[Site "Asnières-sur-Seine, France"]
[Date "2026.05.15"]
[Round "3.5"]
[White "Tokhirjonova, Gulrukhbegim"]
[Black "Bulmaga, Irina"]
[Result "1-0"]
[TimeControl "1h30 / 40 moves + 30m + 30sec/move"]
[WhiteTitle "IM"]
[BlackTitle "IM"]
[WhiteFideId "-"]
[BlackFideId "-"]
[WhiteElo "2335"]
[BlackElo "2361"]

1. d4 {[%clk 01:30:57]} {[%emt 00:00:03]} Nf6 {[%clk 01:30:54]} {[%emt
00:00:06]} 2. Nf3 {[%clk 01:31:18]} {[%emt 00:00:09]} e6 {[%clk 01:31:18]}
{[%emt 00:00:05]} 3. Bf4 {[%clk 01:31:21]} {[%emt 00:00:27]} b6 {[%clk
01:30:04]} {[%emt 00:01:44]} 4. e3 {[%clk 01:31:29]} {[%emt 00:00:22]} Bb7
{[%clk 01:30:12]} {[%emt 00:00:23]} 5. Bd3 {[%clk 01:31:41]} {[%emt 00:00:18]}
d6 {[%clk 01:27:08]} {[%emt 00:03:34]} 6. Nbd2 {[%clk 01:31:05]} {[%emt
00:01:06]} g6 {[%clk 01:26:07]} {[%emt 00:01:32]} 7. h4 {[%clk 01:29:23]}
{[%emt 00:02:12]} Bg7 {[%clk 01:25:25]} {[%emt 00:01:11]} 8. Qe2 {[%clk
01:28:40]} {[%emt 00:01:14]} Nc6 {[%clk 01:22:13]} {[%emt 00:03:42]} 9. c3
{[%clk 01:26:46]} {[%emt 00:02:23]} Qe7 {[%clk 01:18:03]} {[%emt 00:04:40]} 10.
Ba6 {[%clk 01:26:25]} {[%emt 00:00:52]} Bxa6 {[%clk 01:17:48]} {[%emt
00:00:45]} 11. Qxa6 {[%clk 01:26:51]} {[%emt 00:00:03]} O-O {[%clk 01:17:24]}
{[%emt 00:00:54]} 12. Qb5 {[%clk 01:16:33]} {[%emt 00:10:48]} Qd7 {[%clk
01:14:17]} {[%emt 00:03:38]} 13. Bg5 {[%clk 01:13:06]} {[%emt 00:03:57]} a6
{[%clk 01:09:25]} {[%emt 00:05:22]} 14. Qd3 {[%clk 01:09:42]} {[%emt 00:03:53]}
Ng4 {[%clk 00:53:51]} {[%emt 00:16:05]} 15. h5 {[%clk 01:01:09]} {[%emt
00:09:03]} d5 {[%clk 00:53:53]} {[%emt 00:00:27]} 16. Bf4 {[%clk 00:47:08]}
{[%emt 00:14:31]} e5 {[%clk 00:41:46]} {[%emt 00:12:38]} 17. dxe5 {[%clk
00:47:22]} {[%emt 00:00:16]} Ncxe5 {[%clk 00:42:03]} {[%emt 00:00:12]} 18. Nxe5
{[%clk 00:46:02]} {[%emt 00:01:50]} Bxe5 {[%clk 00:41:11]} {[%emt 00:01:22]} 19.
Bxe5 {[%clk 00:44:53]} {[%emt 00:01:40]} Nxe5 {[%clk 00:41:38]} {[%emt
00:00:03]} 20. Qd4 {[%clk 00:45:01]} {[%emt 00:00:22]} Qf5 {[%clk 00:40:51]}
{[%emt 00:01:17]} 21. hxg6 {[%clk 00:32:14]} {[%emt 00:13:18]} fxg6 {[%clk
00:40:52]} {[%emt 00:00:28]} 22. O-O {[%clk 00:31:34]} {[%emt 00:01:10]} Rad8
{[%clk 00:39:24]} {[%emt 00:01:59]} 23. Qh4 {[%clk 00:29:25]} {[%emt 00:02:39]}
Qc2 {[%clk 00:34:29]} {[%emt 00:05:25]} 24. Rad1 {[%clk 00:29:39]} {[%emt
00:00:16]} Qxb2 {[%clk 00:29:37]} {[%emt 00:05:22]} 25. Ne4 {[%clk 00:29:33]}
{[%emt 00:00:35]} Qb5 {[%clk 00:24:31]} {[%emt 00:05:36]} 26. Nf6+ {[%clk
00:28:19]} {[%emt 00:01:45]} Kg7 {[%clk 00:23:34]} {[%emt 00:01:27]} 27. Nxh7
{[%clk 00:27:47]} {[%emt 00:01:02]} Rfe8 {[%clk 00:11:28]} {[%emt 00:12:36]} 28.
Ng5 {[%clk 00:26:33]} {[%emt 00:01:44]} Qd7 {[%clk 00:10:19]} {[%emt 00:01:39]}
29. Qh7+ {[%clk 00:24:31]} {[%emt 00:02:32]} Kf6 {[%clk 00:10:23]} {[%emt
00:00:26]} 30. Ne4+ {[%clk 00:24:33]} {[%emt 00:00:28]} Ke6 {[%clk 00:10:16]}
{[%emt 00:00:37]} 31. Qh4 {[%clk 00:23:01]} {[%emt 00:02:02]} Qe7 {[%clk
00:09:20]} {[%emt 00:01:26]} 32. Ng5+ {[%clk 00:22:02]} {[%emt 00:01:29]} Kd6
{[%clk 00:08:56]} {[%emt 00:00:54]} 33. e4 {[%clk 00:19:40]} {[%emt 00:02:52]}
Kc6 {[%clk 00:08:27]} {[%emt 00:00:59]} 34. exd5+ {[%clk 00:18:08]} {[%emt
00:02:02]} Kb7 {[%clk 00:08:55]} {[%emt 00:00:02]} 35. Qg3 {[%clk 00:18:15]}
{[%emt 00:00:23]} Qd6 {[%clk 00:06:30]} {[%emt 00:02:55]} 36. Ne6 {[%clk
00:16:50]} {[%emt 00:01:55]} Rc8 {[%clk 00:05:35]} {[%emt 00:01:25]} 37. Rfe1
{[%clk 00:15:45]} {[%emt 00:01:34]} Nd7 {[%clk 00:05:40]} {[%emt 00:00:25]} 38.
Re3 {[%clk 00:09:29]} {[%emt 00:06:45]} Rh8 {[%clk 00:02:57]} {[%emt 00:03:13]}
39. Ng5 {[%clk 00:06:45]} {[%emt 00:03:14]} Qxg3 {[%clk 00:00:39]} {[%emt
00:02:49]} 40. Rxg3 {[%clk 00:07:12]} {[%emt 00:00:02]} Rh4 {[%clk 00:00:33]}
{[%emt 00:00:36]} 41. d6 {[%clk 00:03:53]} {[%emt 00:03:49]} cxd6 {[%clk
00:21:07]} {[%emt 00:09:56]} 42. Rxd6 {[%clk 00:34:03]} {[%emt 00:00:19]} Ne5
{[%clk 00:19:12]} {[%emt 00:02:25]} 43. Re3 {[%clk 00:32:45]} {[%emt 00:01:47]}
Rc6 {[%clk 00:16:32]} {[%emt 00:03:11]} 44. Rd8 {[%clk 00:30:35]} {[%emt
00:02:39]} Nc4 {[%clk 00:11:26]} {[%emt 00:05:37]} 45. Ree8 {[%clk 00:30:25]}
{[%emt 00:00:40]} b5 {[%clk 00:10:25]} {[%emt 00:01:31]} 46. Nf3 {[%clk
00:26:38]} {[%emt 00:04:17]} Rh7 {[%clk 00:09:25]} {[%emt 00:01:29]} 47. Nd4
{[%clk 00:26:50]} {[%emt 00:00:18]} Rd6 {[%clk 00:06:48]} {[%emt 00:03:07]} 48.
Rxd6 {[%clk 00:24:55]} {[%emt 00:02:25]} Nxd6 {[%clk 00:07:16]} {[%emt
00:00:02]} 49. Re6 {[%clk 00:25:14]} {[%emt 00:00:10]} Rd7 {[%clk 00:06:38]}
{[%emt 00:01:09]} 50. Nb3 {[%clk 00:22:40]} {[%emt 00:03:04]} Kb6 {[%clk
00:06:34]} {[%emt 00:00:34]} 51. Rxg6 {[%clk 00:22:54]} {[%emt 00:00:16]} a5
{[%clk 00:07:03]} {[%emt 00:00:01]} 52. g4 {[%clk 00:20:55]} {[%emt 00:02:28]}
a4 {[%clk 00:07:29]} {[%emt 00:00:04]} 53. Nd2 {[%clk 00:21:09]} {[%emt
00:00:15]} Ka5 {[%clk 00:07:25]} {[%emt 00:00:34]} 54. Rg5 {[%clk 00:21:11]}
{[%emt 00:00:28]} Nf7 {[%clk 00:06:59]} {[%emt 00:00:56]} 55. Nc4+ {[%clk
00:21:31]} {[%emt 00:00:09]} Ka6 {[%clk 00:07:27]} {[%emt 00:00:02]} 56. Rg6+
{[%clk 00:21:53]} {[%emt 00:00:08]} Kb7 {[%clk 00:06:52]} {[%emt 00:01:05]} 57.
Rb6+ {[%clk 00:22:04]} {[%emt 00:00:19]} Kc7 {[%clk 00:06:48]} {[%emt
00:00:34]} 58. Rxb5 {[%clk 00:22:21]} {[%emt 00:00:13]} Rd1+ {[%clk 00:06:48]}
{[%emt 00:00:30]} 59. Kg2 {[%clk 00:22:40]} {[%emt 00:00:12]} Rd3 {[%clk
00:06:10]} {[%emt 00:01:08]} 60. Ra5 {[%clk 00:22:53]} {[%emt 00:00:17]} Rxc3
{[%clk 00:06:18]} {[%emt 00:00:21]} 61. Rxa4 {[%clk 00:23:19]} {[%emt
00:00:04]} 1-0

[Event "Top 12 Féminin 2026"]
[Site "Asnières-sur-Seine, France"]
[Date "2026.05.15"]
[Round "3.6"]
[White "Bensdorp-De Labaca, Marlies"]
[Black "Bosc, Seraphina"]
[Result "1-0"]
[TimeControl "1h30 / 40 moves + 30m + 30sec/move"]
[WhiteTitle "WIM"]
[BlackTitle "WIM"]
[WhiteFideId "-"]
[BlackFideId "-"]
[WhiteElo "2175"]
[BlackElo "2230"]

1. d4 {[%clk 01:30:57]} {[%emt 00:00:01]} d5 {[%clk 01:30:36]} {[%emt
00:00:25]} 2. c4 {[%clk 01:31:21]} {[%emt 00:00:06]} e6 {[%clk 01:30:54]}
{[%emt 00:00:11]} 3. Nc3 {[%clk 01:31:45]} {[%emt 00:00:06]} h6 {[%clk
01:29:58]} {[%emt 00:01:27]} 4. Nf3 {[%clk 01:32:00]} {[%emt 00:00:15]} Nf6
{[%clk 01:30:13]} {[%emt 00:00:15]} 5. Bf4 {[%clk 01:28:09]} {[%emt 00:04:21]}
Bb4 {[%clk 01:28:42]} {[%emt 00:02:02]} 6. Qa4+ {[%clk 01:21:02]} {[%emt
00:07:36]} Nc6 {[%clk 01:28:59]} {[%emt 00:00:12]} 7. a3 {[%clk 01:17:35]}
{[%emt 00:03:57]} Bxc3+ {[%clk 01:24:52]} {[%emt 00:04:37]} 8. bxc3 {[%clk
01:18:00]} {[%emt 00:00:05]} Bd7 {[%clk 01:24:27]} {[%emt 00:00:55]} 9. cxd5
{[%clk 01:17:24]} {[%emt 00:01:07]} Nxd5 {[%clk 01:22:38]} {[%emt 00:02:18]} 10.
Bd2 {[%clk 01:17:34]} {[%emt 00:00:19]} b5 {[%clk 01:21:03]} {[%emt 00:02:05]}
11. Qc2 {[%clk 01:17:04]} {[%emt 00:01:00]} Nb6 {[%clk 01:17:40]} {[%emt
00:03:54]} 12. e4 {[%clk 01:16:45]} {[%emt 00:00:50]} Na5 {[%clk 01:14:50]}
{[%emt 00:03:20]} 13. Ne5 {[%clk 01:14:20]} {[%emt 00:02:54]} O-O {[%clk
01:07:28]} {[%emt 00:07:51]} 14. Be2 {[%clk 01:11:04]} {[%emt 00:03:47]} Rc8
{[%clk 01:04:31]} {[%emt 00:03:27]} 15. O-O {[%clk 01:00:49]} {[%emt 00:10:46]}
Nbc4 {[%clk 00:57:42]} {[%emt 00:07:19]} 16. Nxd7 {[%clk 00:50:52]} {[%emt
00:10:26]} Qxd7 {[%clk 00:57:22]} {[%emt 00:00:50]} 17. Rfd1 {[%clk 00:44:05]}
{[%emt 00:07:16]} Rfd8 {[%clk 00:43:24]} {[%emt 00:14:28]} 18. Bc1 {[%clk
00:42:27]} {[%emt 00:02:08]} Qe7 {[%clk 00:37:15]} {[%emt 00:06:39]} 19. a4
{[%clk 00:39:14]} {[%emt 00:03:42]} a6 {[%clk 00:36:13]} {[%emt 00:01:33]} 20.
axb5 {[%clk 00:36:44]} {[%emt 00:03:00]} axb5 {[%clk 00:36:38]} {[%emt
00:00:05]} 21. Rb1 {[%clk 00:35:29]} {[%emt 00:01:45]} c6 {[%clk 00:28:13]}
{[%emt 00:08:55]} 22. e5 {[%clk 00:32:00]} {[%emt 00:03:59]} Qh4 {[%clk
00:22:04]} {[%emt 00:06:39]} 23. g3 {[%clk 00:25:13]} {[%emt 00:07:18]} Qh3
{[%clk 00:19:31]} {[%emt 00:03:02]} 24. Bf1 {[%clk 00:17:47]} {[%emt 00:07:56]}
Qg4 {[%clk 00:18:51]} {[%emt 00:01:08]} 25. Be2 {[%clk 00:16:09]} {[%emt
00:02:10]} Qh3 {[%clk 00:19:09]} {[%emt 00:00:12]} 26. Qe4 {[%clk 00:14:28]}
{[%emt 00:02:11]} Qf5 {[%clk 00:17:25]} {[%emt 00:02:14]} 27. Qxf5 {[%clk
00:14:47]} {[%emt 00:00:11]} exf5 {[%clk 00:17:52]} {[%emt 00:00:03]} 28. Bd3
{[%clk 00:14:45]} {[%emt 00:00:33]} Ra8 {[%clk 00:17:19]} {[%emt 00:01:04]} 29.
Bxf5 {[%clk 00:12:03]} {[%emt 00:03:12]} Nxe5 {[%clk 00:16:19]} {[%emt
00:01:30]} 30. Bf4 {[%clk 00:11:18]} {[%emt 00:01:14]} Nec4 {[%clk 00:16:30]}
{[%emt 00:00:18]} 31. h4 {[%clk 00:09:10]} {[%emt 00:02:38]} Na3 {[%clk
00:14:45]} {[%emt 00:02:16]} 32. Rb2 {[%clk 00:09:08]} {[%emt 00:00:32]} N3c4
{[%clk 00:13:32]} {[%emt 00:01:43]} 33. Re2 {[%clk 00:08:36]} {[%emt 00:01:01]}
Kf8 {[%clk 00:07:13]} {[%emt 00:06:50]} 34. Kf1 {[%clk 00:07:02]} {[%emt
00:02:03]} Nb3 {[%clk 00:02:28]} {[%emt 00:05:16]} 35. Rde1 {[%clk 00:06:29]}
{[%emt 00:01:03]} b4 {[%clk 00:02:16]} {[%emt 00:00:42]} 36. Bc2 {[%clk
00:03:33]} {[%emt 00:03:26]} Ra3 {[%clk 00:01:26]} {[%emt 00:01:21]} 37. Rb1
{[%clk 00:01:53]} {[%emt 00:02:10]} Ra1 {[%clk 00:00:48]} {[%emt 00:01:07]} 38.
cxb4 {[%clk 00:01:10]} {[%emt 00:01:13]} Rxb1+ {[%clk 00:00:48]} {[%emt
00:00:30]} 39. Bxb1 {[%clk 00:01:37]} {[%emt 00:00:04]} Nxd4 {[%clk 00:00:34]}
{[%emt 00:00:44]} 40. Re4 {[%clk 00:00:53]} {[%emt 00:01:13]} f5 {[%clk
00:00:33]} {[%emt 00:00:31]} 41. Re1 {[%clk 00:28:57]} {[%emt 00:02:26]} Nf3
{[%clk 00:26:25]} {[%emt 00:04:37]} 42. Rc1 {[%clk 00:27:50]} {[%emt 00:01:37]}
Nfd2+ {[%clk 00:26:03]} {[%emt 00:00:52]} 43. Kg2 {[%clk 00:24:30]} {[%emt
00:03:50]} Nxb1 {[%clk 00:24:07]} {[%emt 00:02:27]} 44. Rxc4 {[%clk 00:24:56]}
{[%emt 00:00:04]} Rd5 {[%clk 00:18:37]} {[%emt 00:05:58]} 45. Rxc6 {[%clk
00:25:16]} {[%emt 00:00:11]} Na3 {[%clk 00:18:54]} {[%emt 00:00:13]} 46. Be3
{[%clk 00:21:39]} {[%emt 00:04:07]} Kf7 {[%clk 00:17:53]} {[%emt 00:01:31]} 47.
Rc7+ {[%clk 00:20:33]} {[%emt 00:01:36]} Kf6 {[%clk 00:17:14]} {[%emt
00:01:09]} 48. Bc5 {[%clk 00:19:49]} {[%emt 00:01:14]} Nb5 {[%clk 00:16:50]}
{[%emt 00:00:54]} 49. Rb7 {[%clk 00:19:43]} {[%emt 00:00:35]} Nc3 {[%clk
00:16:39]} {[%emt 00:00:41]} 50. Bf8 {[%clk 00:19:36]} {[%emt 00:00:37]} Ne4
{[%clk 00:14:47]} {[%emt 00:02:23]} 51. Bxg7+ {[%clk 00:18:58]} {[%emt
00:01:07]} Kg6 {[%clk 00:15:09]} {[%emt 00:00:07]} 52. Bf8 {[%clk 00:19:04]}
{[%emt 00:00:24]} Rd2 {[%clk 00:14:35]} {[%emt 00:01:06]} 53. Rb6+ {[%clk
00:19:09]} {[%emt 00:00:24]} Kf7 {[%clk 00:13:52]} {[%emt 00:01:13]} 54. Bc5
{[%clk 00:19:32]} {[%emt 00:00:07]} Nxc5 {[%clk 00:13:48]} {[%emt 00:00:35]} 55.
bxc5 {[%clk 00:19:57]} {[%emt 00:00:05]} Rc2 {[%clk 00:14:04]} {[%emt
00:00:14]} 56. c6 {[%clk 00:19:15]} {[%emt 00:01:12]} f4 {[%clk 00:14:09]}
{[%emt 00:00:25]} 57. g4 {[%clk 00:19:25]} {[%emt 00:00:20]} Rc3 {[%clk
00:14:00]} {[%emt 00:00:39]} 58. Rb7+ {[%clk 00:19:05]} {[%emt 00:00:51]} Kf6
{[%clk 00:14:07]} {[%emt 00:00:21]} 59. c7 {[%clk 00:18:56]} {[%emt 00:00:39]}
Ke5 {[%clk 00:13:04]} {[%emt 00:01:34]} 60. h5 {[%clk 00:18:57]} {[%emt
00:00:29]} Kf6 {[%clk 00:12:54]} {[%emt 00:00:40]} 61. Rb5 {[%clk 00:14:11]}
{[%emt 00:05:17]} Rxc7 {[%clk 00:12:46]} {[%emt 00:00:38]} 62. Rf5+ {[%clk
00:14:37]} {[%emt 00:00:03]} Kg7 {[%clk 00:13:12]} {[%emt 00:00:04]} 63. Rxf4
{[%clk 00:15:03]} {[%emt 00:00:04]} Rc3 {[%clk 00:12:48]} {[%emt 00:00:53]} 64.
Rf5 {[%clk 00:15:19]} {[%emt 00:00:15]} Ra3 {[%clk 00:13:10]} {[%emt 00:00:08]}
65. f3 {[%clk 00:15:41]} {[%emt 00:00:09]} Rb3 {[%clk 00:13:22]} {[%emt
00:00:18]} 66. Kg3 {[%clk 00:16:06]} {[%emt 00:00:05]} Ra3 {[%clk 00:13:47]}
{[%emt 00:00:05]} 67. Rb5 {[%clk 00:16:27]} {[%emt 00:00:09]} Ra4 {[%clk
00:13:57]} {[%emt 00:00:19]} 68. Rb6 {[%clk 00:16:40]} {[%emt 00:00:17]} Ra3
{[%clk 00:14:02]} {[%emt 00:00:25]} 69. Rg6+ {[%clk 00:17:05]} {[%emt
00:00:04]} Kh7 {[%clk 00:14:28]} {[%emt 00:00:04]} 70. Re6 {[%clk 00:17:10]}
{[%emt 00:00:25]} Kg7 {[%clk 00:13:44]} {[%emt 00:01:14]} 71. Kf4 {[%clk
00:17:23]} {[%emt 00:00:16]} Ra4+ {[%clk 00:13:47]} {[%emt 00:00:29]} 72. Kf5
{[%clk 00:17:41]} {[%emt 00:00:11]} Ra5+ {[%clk 00:13:43]} {[%emt 00:00:35]} 73.
Re5 {[%clk 00:18:06]} {[%emt 00:00:05]} Ra6 {[%clk 00:13:56]} {[%emt 00:00:17]}
74. Re7+ {[%clk 00:17:45]} {[%emt 00:00:50]} 1-0

[Event "Top 12 Féminin 2026"]
[Site "Asnières-sur-Seine, France"]
[Date "2026.05.15"]
[Round "3.7"]
[White "Hernandez, Lara"]
[Black "Choisy, Mathilde"]
[Result "1/2-1/2"]
[TimeControl "1h30 / 40 moves + 30m + 30sec/move"]
[WhiteTitle "WCM"]
[BlackTitle "WFM"]
[WhiteFideId "-"]
[BlackFideId "-"]
[WhiteElo "2014"]
[BlackElo "2096"]

1. d4 {[%clk 01:30:58]} {[%emt 00:00:02]} g6 {[%clk 01:30:51]} {[%emt
00:00:09]} 2. c4 {[%clk 01:30:59]} {[%emt 00:00:28]} Bg7 {[%clk 01:30:37]}
{[%emt 00:00:44]} 3. Nc3 {[%clk 01:31:09]} {[%emt 00:00:21]} d6 {[%clk
01:28:15]} {[%emt 00:02:51]} 4. g3 {[%clk 01:28:23]} {[%emt 00:03:15]} Nf6
{[%clk 01:26:09]} {[%emt 00:02:36]} 5. Nf3 {[%clk 01:28:02]} {[%emt 00:00:52]}
O-O {[%clk 01:26:31]} {[%emt 00:00:09]} 6. Bg2 {[%clk 01:28:29]} {[%emt
00:00:03]} c5 {[%clk 01:25:40]} {[%emt 00:01:20]} 7. d5 {[%clk 01:27:10]}
{[%emt 00:01:49]} a6 {[%clk 01:08:32]} {[%emt 00:17:38]} 8. O-O {[%clk
01:20:34]} {[%emt 00:07:05]} b5 {[%clk 01:06:18]} {[%emt 00:02:45]} 9. cxb5
{[%clk 01:18:04]} {[%emt 00:03:00]} axb5 {[%clk 01:06:43]} {[%emt 00:00:04]} 10.
Nxb5 {[%clk 01:17:44]} {[%emt 00:00:50]} Ba6 {[%clk 01:04:24]} {[%emt
00:02:49]} 11. Nc3 {[%clk 01:15:31]} {[%emt 00:02:44]} Nbd7 {[%clk 01:04:22]}
{[%emt 00:00:32]} 12. Rb1 {[%clk 01:12:27]} {[%emt 00:03:34]} Qa5 {[%clk
01:00:06]} {[%emt 00:04:46]} 13. Bd2 {[%clk 01:03:22]} {[%emt 00:09:35]} Bb7
{[%clk 00:44:08]} {[%emt 00:16:27]} 14. Re1 {[%clk 00:52:38]} {[%emt 00:11:13]}
Nb6 {[%clk 00:39:19]} {[%emt 00:05:19]} 15. b3 {[%clk 00:51:03]} {[%emt
00:02:05]} Nfd7 {[%clk 00:33:04]} {[%emt 00:06:45]} 16. Qc2 {[%clk 00:47:45]}
{[%emt 00:03:48]} Qa3 {[%clk 00:27:04]} {[%emt 00:06:30]} 17. e4 {[%clk
00:43:01]} {[%emt 00:05:14]} Rfc8 {[%clk 00:25:21]} {[%emt 00:02:13]} 18. Bc1
{[%clk 00:32:25]} {[%emt 00:11:07]} Qa5 {[%clk 00:25:42]} {[%emt 00:00:09]} 19.
Bb2 {[%clk 00:31:49]} {[%emt 00:01:07]} Ne5 {[%clk 00:18:21]} {[%emt 00:07:51]}
20. Nxe5 {[%clk 00:28:13]} {[%emt 00:04:06]} Bxe5 {[%clk 00:18:48]} {[%emt
00:00:03]} 21. Bh3 {[%clk 00:28:20]} {[%emt 00:00:23]} Rd8 {[%clk 00:18:19]}
{[%emt 00:00:58]} 22. Ba1 {[%clk 00:25:33]} {[%emt 00:03:17]} Bc8 {[%clk
00:11:35]} {[%emt 00:07:14]} 23. Bf1 {[%clk 00:24:42]} {[%emt 00:01:22]} Ba6
{[%clk 00:11:37]} {[%emt 00:00:28]} 24. Bxa6 {[%clk 00:20:51]} {[%emt
00:04:21]} Qxa6 {[%clk 00:11:50]} {[%emt 00:00:17]} 25. a4 {[%clk 00:16:15]}
{[%emt 00:05:06]} Rdc8 {[%clk 00:11:05]} {[%emt 00:01:14]} 26. Bb2 {[%clk
00:11:16]} {[%emt 00:05:29]} Qa5 {[%clk 00:09:16]} {[%emt 00:02:19]} 27. Nb5
{[%clk 00:10:14]} {[%emt 00:01:33]} Nd7 {[%clk 00:07:13]} {[%emt 00:02:32]} 28.
Rec1 {[%clk 00:09:14]} {[%emt 00:01:31]} h5 {[%clk 00:06:36]} {[%emt 00:01:06]}
29. Kg2 {[%clk 00:08:33]} {[%emt 00:01:11]} Qd8 {[%clk 00:05:02]} {[%emt
00:02:04]} 30. Bxe5 {[%clk 00:07:25]} {[%emt 00:01:39]} Nxe5 {[%clk 00:05:28]}
{[%emt 00:00:04]} 31. f4 {[%clk 00:05:42]} {[%emt 00:02:12]} Ng4 {[%clk
00:05:39]} {[%emt 00:00:19]} 32. Kf3 {[%clk 00:04:46]} {[%emt 00:01:26]} Qd7
{[%clk 00:04:25]} {[%emt 00:01:44]} 33. h3 {[%clk 00:03:55]} {[%emt 00:01:21]}
Nf6 {[%clk 00:04:49]} {[%emt 00:00:07]} 34. Kg2 {[%clk 00:04:11]} {[%emt
00:00:14]} Kg7 {[%clk 00:01:38]} {[%emt 00:03:41]} 35. Nc3 {[%clk 00:03:36]}
{[%emt 00:01:04]} Rcb8 {[%clk 00:01:17]} {[%emt 00:00:51]} 36. Nb5 {[%clk
00:03:32]} {[%emt 00:00:34]} Rc8 {[%clk 00:01:32]} {[%emt 00:00:15]} 37. Nc3
{[%clk 00:03:25]} {[%emt 00:00:37]} Rcb8 {[%clk 00:01:58]} {[%emt 00:00:04]} 38.
Nb5 {[%clk 00:03:49]} {[%emt 00:00:06]} 1/2-1/2